bitfinex/quotes_SOLUSD_20250420
["timestamp","ask_amount","ask_price","bid_price","bid_amount"]
[1745142717673,101.04964886,138.66,138.63,0.03]
[1745142717674,18.64964886,138.65,138.63,0.03]
[1745142720501,127.04964886,138.64,138.63,0.03]
[1745142725412,108.4,138.64,138.63,0.03]
[1745142731282,82.4,138.66,138.63,0.03]
[1745142731764,82.463,138.71,138.63,20.03]
[1745142732184,26.0,138.68,138.63,20.03]
[1745142733089,26.0,138.68,138.65,20.0]
[1745142733295,0.063,138.71,138.67,20.0]
[1745142733466,0.063,138.71,138.68,15.16]
[1745142735076,0.063,138.71,138.69,20.0]
[1745142736192,0.063,138.71,138.7,6.0009]
[1745142736584,0.063,138.71,138.7,24.65054886]
[1745142745594,0.063,138.71,138.7,271.61054886]
[1745142750098,0.063,138.71,138.7,246.96]
[1745142751378,0.063,138.71,138.7,265.60964886]
[1745142752787,0.063,138.71,138.7,246.96]
[1745142753275,0.063,138.71,138.7,262.2]
[1745142767039,0.063,138.71,138.7,280.84964886]
[1745142774925,0.063,138.71,138.7,262.28]
[1745142779930,0.063,138.71,138.7,280.92964886]
[1745142786959,0.063,138.71,138.7,281.92964886]
[1745142787260,0.063,138.71,138.7,363.22964886]
[1745142791552,0.063,138.71,138.7,362.22964886]
[1745142791737,0.063,138.71,138.7,363.22964886]
[1745142792955,0.063,138.71,138.7,388.22964886]
[1745142793261,0.063,138.71,138.7,389.22964886]
[1745142794962,0.063,138.77,138.76,38.64964886]
[1745142795150,0.063,138.77,138.76,53.96964886]
[1745142797063,0.063,138.77,138.76,141.94425876]
[1745142797255,0.063,138.77,138.76,140.94425876]
[1745142797438,0.063,138.77,138.76,141.94425876]
[1745142798445,0.063,138.77,138.76,136.26964886]
[1745142801443,0.063,138.77,138.76,141.91361793]
[1745142805657,0.063,138.82,138.81,38.64964886]
[1745142805857,0.063,138.82,138.81,300.52964886]
[1745142820270,0.063,138.85,138.84,38.64964886]
[1745142828897,0.063,138.85,138.84,20.0]
[1745142829575,0.063,138.85,138.84,38.64964886]
[1745142834480,0.063,138.85,138.84,119.94964886]
[1745142839813,0.063,138.85,138.84,145.94964886]
[1745142846703,0.063,138.85,138.84,146.94964886]
[1745142847911,0.063,138.85,138.84,145.94964886]
[1745142848124,0.063,138.85,138.84,146.94964886]
[1745142849010,0.063,138.85,138.84,145.94964886]
[1745142849308,0.063,138.85,138.84,146.94964886]
[1745142851713,0.06299782,138.85,138.84,146.94964886]
[1745142854014,0.06299782,138.85,138.84,161.76964886]
[1745142854908,0.06299782,138.85,138.84,160.76964886]
[1745142855412,0.06299782,138.85,138.84,161.76964886]
[1745142858821,0.06299782,138.85,138.84,408.34964886]
[1745142860421,0.06299782,138.85,138.84,407.34964886]
[1745142860604,0.06299782,138.85,138.84,408.34964886]
[1745142864993,0.06299782,138.85,138.84,407.34964886]
[1745142865202,0.06299782,138.85,138.84,408.34964886]
[1745142865720,0.06299782,138.85,138.84,407.34964886]
[1745142866125,0.06299782,138.85,138.84,408.34964886]
[1745142866298,0.06299782,138.85,138.84,407.34964886]
[1745142866499,0.06299782,138.85,138.84,408.34964886]
[1745142869104,0.06299782,138.85,138.84,407.34964886]
[1745142869422,0.06299782,138.85,138.84,381.08964886]
[1745142870822,0.06299782,138.85,138.84,362.44]
[1745142871229,0.06299782,138.85,138.84,364.47628]
[1745142872431,0.06299782,138.85,138.84,283.17628]
[1745142884034,0.06299782,138.85,138.84,301.82592886]
[1745142884721,0.06299782,138.85,138.84,283.17628]
[1745142889328,0.06299782,138.85,138.84,281.14]
[1745142893042,0.06299782,138.85,138.84,299.78964886]
[1745142893227,0.06299782,138.85,138.84,307.75719269]
[1745142893829,0.06299782,138.85,138.84,289.10754383]
[1745142894647,0.06299782,138.85,138.84,281.14]
[1745142900151,0.06299782,138.85,138.84,299.78964886]
[1745142906350,0.003,138.88,138.86,38.64964886]
[1745142907329,0.003,138.88,138.87,18.64964886]
[1745142907537,0.003,138.88,138.87,26.61719269]
[1745142908055,0.043,138.9,138.89,18.64964886]
[1745142908245,0.043,138.9,138.89,33.12964886]
[1745142908445,0.043,138.9,138.89,71.05711331]
[1745142908747,0.043,138.9,138.89,69.61799269]
[1745142909129,0.043,138.9,138.89,68.61799269]
[1745142909457,0.043,138.9,138.89,69.61799269]
[1745142910556,0.043,138.9,138.89,67.09719269]
[1745142910757,0.043,138.9,138.89,59.12964886]
[1745142917167,0.043,138.9,138.89,67.09719269]
[1745142918461,0.043,138.9,138.89,68.53621533]
[1745142919360,0.043,138.9,138.89,67.09719269]
[1745142922256,0.043,138.9,138.89,68.09719269]
[1745142922958,0.043,138.9,138.89,149.39719269]
[1745142925362,0.043,138.9,138.89,148.39719269]
[1745142925546,0.043,138.9,138.89,149.39719269]
[1745142926270,0.043,138.9,138.89,395.91719269]
[1745142927369,0.043,138.9,138.89,386.90964886]
[1745142940777,0.043,138.9,138.89,360.90964886]
[1745142975994,0.043,138.9,138.89,346.46964886]
[1745142976301,0.043,138.9,138.89,360.74964886]
[1745142985909,0.043,138.9,138.89,368.71719269]
[1745142998639,0.043,138.9,138.89,360.74964886]
[1745143001040,0.043,138.9,138.89,279.44964886]
[1745143002225,0.043,138.9,138.89,260.8]
[1745143006236,0.043,138.9,138.89,279.44964886]
[1745143010841,0.043,138.9,138.89,260.8]
[1745143033229,0.043,138.9,138.89,279.44964886]
[1745143034458,0.043,138.9,138.89,260.8]
[1745143042767,0.02580083,138.9,138.89,260.8]
[1745143081880,82.463,138.95,138.94,1.81519917]
[1745143082082,82.463,138.95,138.94,15.97519917]
[1745143083707,0.063,138.95,138.94,15.97519917]
[1745143084201,26.063,138.95,138.94,15.97519917]
[1745143095697,0.063,138.95,138.94,35.97519917]
[1745143099797,26.063,138.95,138.94,15.97519917]
[1745143100192,108.463,138.95,138.94,15.97519917]
[1745143106420,26.063,138.95,138.94,15.97519917]
[1745143146569,0.063,138.95,138.94,15.97519917]
[1745143171184,0.063,138.95,138.94,34.62484803]
[1745143175696,0.063,138.95,138.94,38.17196091]
[1745143187211,0.063,138.95,138.94,36.35676174]
[1745143194022,0.063,138.95,138.94,14.16]
[1745143200834,26.063,138.95,138.94,14.16]
[1745143206553,0.063,138.95,138.94,14.16]
[1745143208111,26.063,138.95,138.94,14.16]
[1745143211234,0.063,138.95,138.94,14.16]
[1745143212247,26.063,138.95,138.94,14.16]
[1745143216034,0.063,138.95,138.94,14.16]
[1745143216238,18.71264886,138.95,138.94,14.16]
[1745143217931,0.063,138.95,138.94,14.16]
[1745143220937,0.063,138.95,138.94,22.2315]
[1745143223747,0.063,138.96,138.95,38.64964886]
[1745143223932,8.87,139.09,139.0,20.0]
[1745143224129,8.87,139.09,139.0,280.7]
[1745143224439,26.0,139.05,139.0,280.7]
[1745143225329,82.4,139.08,139.0,280.7]
[1745143225530,26.0,139.07,139.0,280.7]
[1745143225941,26.0,139.07,139.0,299.34964886]
[1745143226242,26.0,139.07,139.0,307.45444886]
[1745143231253,0.063,139.09,139.0,307.45444886]
[1745143231444,26.0,139.07,139.0,307.45444886]
[1745143231849,26.0,139.07,139.0,288.8048]
[1745143232030,82.4,139.06,139.0,282.2543]
[1745143232230,82.4,139.06,139.0,280.7]
[1745143238525,26.0,139.03,139.0,280.7]
[1745143248949,26.0,139.05,139.0,280.7]
[1745143252473,26.0,139.03,139.0,280.7]
[1745143252774,26.0,139.03,139.0,260.7]
[1745143254164,26.0,139.03,139.0,280.7]
[1745143255740,26.0,139.03,139.0,246.4]
[1745143255946,26.0,139.03,139.0,260.54]
[1745143258165,0.063,139.04,139.0,299.18964886]
[1745143273082,24.426,139.05,139.03,20.0]
[1745143275083,24.426,139.05,139.04,14.12]
[1745143279878,24.426,139.05,139.04,260.48]
[1745143280788,0.03,139.07,139.05,20.0]
[1745143280991,26.0,139.06,139.05,20.0]
[1745143287092,26.0,139.06,139.04,260.48]
[1745143300294,26.0,139.06,139.05,20.0]
[1745143303901,0.03,139.07,139.05,20.0]
[1745143313515,0.03,139.07,139.06,14.12]
[1745143318325,0.03,139.07,139.06,260.44]
[1745143319016,34.2321,139.07,139.06,260.44]
[1745143321220,52.88174886,139.07,139.06,260.44]
[1745143329012,60.07237228,139.07,139.06,260.44]
[1745143329213,52.88174886,139.07,139.06,260.44]
[1745143332820,27.6052,139.07,139.06,260.44]
[1745143333409,27.6052,139.07,139.06,14.12]
[1745143333615,26.03,139.07,139.06,14.12]
[1745143336639,0.03,139.07,139.06,14.12]
[1745143338338,26.03,139.07,139.06,14.12]
[1745143347852,0.03,139.07,139.06,14.12]
[1745143366560,19.64964886,138.92,138.91,1e-08]
[1745143366745,83.34964886,138.85,138.84,5.96747905]
[1745143366939,83.34964886,138.85,138.78,157.72566342]
[1745143366940,66.21964886,138.82,138.78,157.72566342]
[1745143367145,26.0,138.81,138.78,157.72566342]
[1745143367864,26.0,138.8,138.78,157.72566342]
[1745143368264,26.0,138.8,138.79,14.92]
[1745143371042,44.64964886,138.8,138.79,14.92]
[1745143371243,51.85432467,138.8,138.79,14.92]
[1745143371674,73.42432467,138.8,138.79,14.92]
[1745143371956,26.0,138.8,138.79,14.92]
[1745143372151,44.64964886,138.8,138.79,14.92]
[1745143374271,26.0,138.8,138.79,14.92]
[1745143374467,7.186,138.82,138.79,14.92]
[1745143374771,26.0,138.8,138.79,14.92]
[1745143375141,18.64964886,138.84,138.79,14.92]
[1745143375870,26.0,138.8,138.79,261.62]
[1745143376244,82.4,138.83,138.79,261.62]
[1745143376547,26.0,138.8,138.79,261.62]
[1745143376746,82.4,138.83,138.79,261.62]
[1745143376747,82.4,138.82,138.79,261.62]
[1745143377157,26.0,138.8,138.79,261.62]
[1745143379656,82.4,138.82,138.79,261.68]
[1745143380355,82.4,138.86,138.79,261.68]
[1745143380577,82.4,138.86,138.8,20.0]
[1745143380746,82.4,138.86,138.82,20.0]
[1745143380948,26.0,138.89,138.82,20.0]
[1745143381472,0.063,138.87,138.82,20.0]
[1745143381693,0.063,138.87,138.85,20.0]
[1745143381847,0.063,138.87,138.86,14.94]
[1745143382378,0.063,138.87,138.86,261.66]
[1745143387158,0.063,138.87,138.82,20.0]
[1745143387483,0.063,138.87,138.83,261.64]
[1745143390887,0.063,138.87,138.86,20.0]
[1745143391064,0.063,138.87,138.86,26.1375]
[1745143392068,0.063,138.87,138.86,44.78714886]
[1745143393866,0.063,138.87,138.84,20.0]
[1745143398888,0.063,138.87,138.85,14.92]
[1745143403693,0.063,138.87,138.86,246.64]
[1745143407370,0.063,138.87,138.86,285.28964886]
[1745143409979,1.0197,138.93,138.89,18.64964886]
[1745143410184,1.0197,138.93,138.9,41.2522]
[1745143411597,1.0197,138.93,138.92,20.0]
[1745143412910,1.0197,138.93,138.92,38.64964886]
[1745143414098,1.0197,138.93,138.92,20.0]
[1745143422192,1.0197,138.93,138.9,34.92]
[1745143427614,1.0197,138.93,138.91,246.54]
[1745143429590,1.0197,138.93,138.92,38.64964886]
[1745143429794,0.063,138.99,138.94,20.0]
[1745143430015,0.063,138.99,138.95,14.74]
[1745143434521,0.063,138.99,138.96,246.52]
[1745143439339,0.063,138.99,138.97,14.74]
[1745143444708,108.4,138.98,138.97,14.74]
[1745143447330,46.27624886,138.98,138.97,14.74]
[1745143450339,82.4,138.96,138.91,246.52]
[1745143450508,26.0,138.93,138.92,14.74]
[1745143458445,20.27624886,138.98,138.92,14.74]
[1745143458820,26.0,138.95,138.92,14.74]
[1745143461856,82.4,138.94,138.92,14.74]
[1745143470149,82.4,138.97,138.92,14.74]
[1745143470431,82.4,138.97,138.93,1.5341]
[1745143473848,82.4,138.97,138.92,14.74]
[1745143480056,82.4,138.96,138.92,14.74]
[1745143483661,82.4,138.95,138.92,14.74]
[1745143488668,82.4,138.94,138.92,14.74]
[1745143489175,82.4,138.98,138.92,14.74]
[1745143489470,0.063,138.99,138.92,14.74]
[1745143489471,82.4,138.97,138.92,14.74]
[1745143494568,82.4,138.96,138.92,14.74]
[1745143498378,82.4,138.96,138.93,14.46]
[1745143500569,82.4,138.95,138.93,14.46]
[1745143500881,82.4,138.94,138.93,14.46]
[1745143502969,44.64964886,138.98,138.93,14.46]
[1745143503888,18.64964886,138.96,138.93,14.46]
[1745143505173,44.64964886,138.94,138.93,14.46]
[1745143507293,26.0,138.94,138.93,14.46]
[1745143507972,18.64964886,138.97,138.93,14.46]
[1745143508172,26.0,138.96,138.93,14.46]
[1745143509971,26.0,138.95,138.94,14.46]
[1745143516813,26.0,138.97,138.94,14.46]
[1745143519304,18.71264886,138.99,138.94,14.46]
[1745143519511,44.71264886,138.99,138.94,14.46]
[1745143524109,82.4,138.98,138.94,14.46]
[1745143524723,18.64964886,138.96,138.94,14.46]
[1745143527397,44.64964886,138.96,138.94,14.46]
[1745143527600,82.4,138.95,138.94,14.46]
[1745143528515,44.64964886,138.92,138.91,14.34]
[1745143536117,26.0,138.92,138.91,14.34]
[1745143551228,44.64964886,138.92,138.91,14.34]
[1745143556849,66.20964886,138.92,138.91,14.34]
[1745143557349,101.04964886,138.9,138.89,246.64]
[1745143557516,101.04964886,138.9,138.89,260.88]
[1745143559313,82.4,138.9,138.89,260.88]
[1745143562027,44.64964886,138.92,138.89,260.88]
[1745143565845,44.64964886,138.92,138.89,14.24]
[1745143568658,18.64964886,138.93,138.89,14.24]
[1745143569843,26.0,138.9,138.89,14.24]
[1745143572149,44.64964886,138.9,138.89,14.24]
[1745143576364,26.0,138.9,138.89,14.24]
[1745143590663,44.64964886,138.92,138.89,14.24]
[1745143594693,44.64964886,138.92,138.9,14.18]
[1745143597275,101.04964886,138.91,138.9,14.18]
[1745143603093,33.3002149,138.92,138.9,14.18]
[1745143603299,26.0,138.92,138.9,14.18]
[1745143606914,18.64964886,138.91,138.9,14.18]
[1745143616000,26.0,138.92,138.9,14.18]
[1745143625122,18.64964886,138.91,138.9,14.18]
[1745143631313,37.14194032,138.92,138.9,14.18]
[1745143631829,11.14194032,138.92,138.9,14.18]
[1745143632821,11.14194032,138.94,138.9,14.18]
[1745143633336,37.14194032,138.94,138.9,14.18]
[1745143634629,26.0,138.94,138.9,14.18]
[1745143638233,18.64964886,138.93,138.9,14.18]
[1745143638741,26.0,138.94,138.9,14.18]
[1745143641454,18.64964886,138.93,138.9,14.18]
[1745143647144,82.4,138.92,138.9,14.18]
[1745143647636,18.64964886,138.91,138.9,14.18]
[1745143650830,44.64964886,138.91,138.9,14.18]
[1745143653044,82.4,138.89,138.87,246.69]
[1745143653354,82.4,138.88,138.87,246.69]
[1745143653558,82.4,138.88,138.87,260.87]
[1745143659058,26.0,138.91,138.87,260.87]
[1745143659466,18.64964886,138.9,138.87,260.87]
[1745143663064,26.0,138.88,138.87,260.87]
[1745143669268,26.0,138.88,138.87,14.21]
[1745143684892,26.0,138.89,138.87,14.21]
[1745143686086,11.14194032,138.93,138.87,15.8316]
[1745143686281,26.0,138.9,138.87,15.8316]
[1745143686483,108.4,138.89,138.87,15.8316]
[1745143686868,82.4,138.89,138.87,15.8316]
[1745143687277,82.4,138.92,138.87,35.8316]
[1745143691090,82.4,138.91,138.87,35.8316]
[1745143704585,82.4,138.91,138.87,34.21]
[1745143705505,82.4,138.91,138.88,246.62]
[1745143710407,82.4,138.91,138.89,14.16]
[1745143720401,82.4,138.9,138.89,14.16]
[1745143732727,82.4,138.9,138.89,34.16]
[1745143735527,82.4,138.94,138.89,34.16]
[1745143735715,82.4,138.93,138.89,34.16]
[1745143738139,82.4,138.93,138.91,20.0]
[1745143739206,82.4,138.96,138.91,20.0]
[1745143740228,82.4,138.96,138.93,20.0]
[1745143740427,82.463,138.99,138.95,20.0]
[1745143745327,82.463,138.99,138.96,246.54]
[1745143749148,82.463,138.99,138.97,20.0]
[1745143749555,0.063,138.99,138.97,20.0]
[1745143752951,0.063,138.99,138.97,20.0]
[1745143764768,0.063,138.99,138.98,14.16]
[1745143766663,50.11669205,139.0,138.98,14.16]
[1745143769551,50.11669205,139.0,138.99,246.46]
[1745143776570,0.063,139.01,138.99,246.46]
[1745143776751,0.063,139.01,139.0,20.0]
[1745143785369,0.063,139.01,139.0,34.14]
[1745143792566,0.063,139.03,139.02,64.64964886]
[1745143792873,0.063,139.03,139.02,75.27914418]
[1745143793873,0.063,139.03,139.02,89.41914418]
[1745143798065,0.063,139.03,139.02,90.41914418]
[1745143798379,0.063,139.03,139.02,97.30743322]
[1745143800174,0.063,139.03,139.02,96.30743322]
[1745143800366,0.063,139.03,139.02,89.41914418]
[1745143802087,0.063,139.03,139.02,90.41914418]
[1745143803878,0.063,139.03,139.02,97.30743322]
[1745143812399,0.063,139.05,139.04,20.0]
[1745143812585,0.063,139.05,139.04,38.64964886]
[1745143813101,0.063,139.05,139.04,266.28]
[1745143815196,0.063,139.05,139.04,280.42]
[1745143815495,0.063,139.05,139.04,260.42]
[1745143821101,0.063,139.05,139.04,299.06964886]
[1745143821287,0.063,139.1,139.09,20.0]
[1745143821602,0.063,139.1,139.09,34.14]
[1745143828406,0.063,139.1,139.09,280.4]
[1745143833098,0.063,139.1,139.09,260.4]
[1745143841229,1.6904,139.1,139.09,246.26]
[1745143841524,46.34004886,139.1,139.09,260.4]
[1745143853425,53.52404886,139.1,139.09,260.4]
[1745143859820,53.52404886,139.1,139.09,14.14]
[1745143862542,46.34004886,139.1,139.09,14.14]
[1745143867242,44.64964886,139.07,139.06,246.32]
[1745143867444,44.64964886,139.07,139.06,260.46]
[1745143869518,26.0,139.08,139.06,260.46]
[1745143870840,0.063,139.1,139.06,260.46]
[1745143871045,26.0,139.07,139.06,260.46]
[1745143871934,18.71264886,139.1,139.06,260.46]
[1745143872345,26.0,139.07,139.06,260.46]
[1745143876250,26.0,139.07,139.06,14.14]
[1745143885065,18.71264886,139.1,139.06,14.14]
[1745143885252,44.71264886,139.1,139.06,14.14]
[1745143885758,82.4,139.06,139.05,246.36]
[1745143885935,82.4,139.06,139.05,260.5]
[1745143888761,108.463,139.1,139.05,280.5]
[1745143891772,82.463,139.1,139.05,280.5]
[1745143912597,82.463,139.1,139.06,14.14]
[1745143922795,82.4,139.09,139.06,14.14]
[1745143923394,82.4,139.08,139.06,14.14]
[1745143928803,26.0,139.09,139.06,14.14]
[1745143928804,82.4,139.07,139.06,14.14]
[1745143947712,82.4,139.07,139.06,260.48]
[1745143955897,82.463,139.1,139.06,260.48]
[1745143978627,82.4,139.09,139.06,260.48]
[1745143986123,82.4,139.09,139.07,14.12]
[1745143990931,82.4,139.09,139.08,14.12]
[1745144006760,82.4,139.09,139.08,260.44]
[1745144016468,82.4,139.09,139.08,14.12]
[1745144018267,0.063,139.1,139.08,14.12]
[1745144023754,0.063,139.1,139.09,20.0]
[1745144041383,0.063,139.1,139.09,266.22]
[1745144050983,0.063,139.1,139.09,280.32]
[1745144102039,0.063,139.1,139.09,260.32]
[1745144112138,0.063,139.1,139.09,280.32]
[1745144113646,0.063,139.1,139.09,260.32]
[1745144122771,82.463,139.1,139.09,260.32]
[1745144133789,101.11264886,139.1,139.09,260.32]
[1745144133993,101.11264886,139.1,139.09,14.1]
[1745144134480,107.59544886,139.1,139.09,14.1]
[1745144139899,25.19544886,139.1,139.09,14.1]
[1745144141397,18.71264886,139.1,139.09,14.1]
[1745144144793,25.89264886,139.1,139.09,14.1]
[1745144145191,18.71264886,139.1,139.09,14.1]
[1745144155075,0.063,139.1,139.09,14.1]
[1745144155279,26.063,139.1,139.09,14.1]
[1745144155581,0.063,139.1,139.09,14.1]
[1745144155778,26.063,139.1,139.09,14.1]
[1745144156498,0.063,139.1,139.09,14.1]
[1745144156800,26.063,139.1,139.09,14.1]
[1745144160401,82.4,139.09,139.05,246.3]
[1745144160708,108.4,139.09,139.06,14.1]
[1745144164384,26.0,139.07,139.06,14.1]
[1745144169014,44.64964886,139.07,139.06,14.1]
[1745144171310,26.0,139.08,139.06,14.1]
[1745144176316,26.0,139.08,139.07,14.1]
[1745144176614,18.64964886,139.08,139.07,14.1]
[1745144178024,44.64964886,139.08,139.07,14.1]
[1745144180020,26.0,139.08,139.07,14.1]
[1745144181826,82.4,139.09,139.07,14.1]
[1745144182127,108.4,139.09,139.07,14.1]
[1745144189225,18.64964886,139.08,139.07,14.1]
[1745144194122,26.0,139.09,139.07,14.1]
[1745144195515,44.64964886,139.09,139.08,14.1]
[1745144197941,26.0,139.09,139.08,14.1]
[1745144198616,0.063,139.1,139.08,14.1]
[1745144199629,82.463,139.1,139.08,14.1]
[1745144211425,82.463,139.1,139.08,260.42]
[1745144220949,82.463,139.1,139.09,14.08]
[1745144224963,0.063,139.1,139.09,14.08]
[1745144225652,0.063,139.1,139.09,34.08]
[1745144244182,0.063,139.1,139.09,39.92230546]
[1745144244383,0.063,139.1,139.09,58.57195432]
[1745144244564,0.063,139.1,139.09,67.67834964]
[1745144245880,0.063,139.1,139.09,61.83604418]
[1745144249383,0.063,139.1,139.09,74.80404835]
[1745144249888,0.063,139.13,139.12,20.0]
[1745144253391,0.063,139.13,139.12,266.16]
[1745144258192,0.063,139.13,139.12,280.24]
[1745144262682,0.063,139.13,139.12,289.34639532]
[1745144268910,0.03,139.15,139.14,20.0]
[1745144269209,0.03,139.15,139.14,29.10639532]
[1745144271193,0.03,139.15,139.14,54.97838599]
[1745144272181,0.03,139.15,139.14,55.97838599]
[1745144275701,0.03,139.15,139.14,54.97838599]
[1745144275892,0.03,139.19,139.15,1.0]
[1745144276092,0.03,139.19,139.15,16.32873713]
[1745144276503,0.03,139.19,139.15,17.32873713]
[1745144277500,0.03,139.19,139.15,16.32873713]
[1745144279903,0.03,139.19,139.15,17.32873713]
[1745144280208,0.03,139.19,139.15,16.32873713]
[1745144282205,0.03,139.19,139.15,34.97838599]
[1745144282583,0.03,139.19,139.15,16.32873713]
[1745144282783,0.03,139.19,139.14,20.0]
[1745144295201,0.03,139.19,139.15,14.06]
[1745144300018,0.03,139.19,139.15,260.16]
[1745144317640,18.67964886,139.19,139.15,260.16]
[1745144317835,101.07964886,139.19,139.15,260.16]
[1745144328949,127.07964886,139.19,139.15,260.16]
[1745144329256,170.15964886,139.19,139.15,260.16]
[1745144329954,26.03,139.16,139.15,260.16]
[1745144333450,0.03,139.16,139.15,260.16]
[1745144340732,7.8708,139.16,139.15,260.16]
[1745144341153,26.52044886,139.16,139.15,260.16]
[1745144343738,20.22004886,139.16,139.15,260.16]
[1745144344561,18.67964886,139.16,139.15,260.16]
[1745144348869,0.03,139.16,139.15,260.16]
[1745144377489,0.03,139.16,139.15,261.8054]
[1745144380379,0.03,139.16,139.15,270.91179532]
[1745144387691,0.03,139.16,139.15,261.8054]
[1745144392191,0.03,139.16,139.15,260.16]
[1745144397588,1e-08,139.16,139.15,260.16]
[1745144399903,1e-08,139.16,139.15,261.7049]
[1745144403679,1e-08,139.16,139.15,270.81129532]
[1745144404195,1e-08,139.16,139.15,296.68328599]
[1745144404501,1e-08,139.16,139.15,322.68328599]
[1745144404711,1e-08,139.16,139.15,304.03363713]
[1745144407713,1e-08,139.16,139.15,302.48873713]
[1745144408002,1e-08,139.16,139.15,295.26639532]
[1745144409711,1e-08,139.16,139.15,286.16]
[1745144411014,1e-08,139.16,139.15,260.16]
[1745144494373,1e-08,139.16,139.15,280.16]
[1745144499588,1e-08,139.16,139.15,322.6843271]
[1745144500580,1e-08,139.16,139.15,403.9843271]
[1745144505480,1e-08,139.16,139.15,385.33467824]
[1745144505877,1e-08,139.16,139.15,290.79483643]
[1745144509493,1e-08,139.16,139.15,298.01717824]
[1745144515690,1e-08,139.16,139.15,316.6668271]
[1745144518099,0.00892009,139.24,139.19,20.0]
[1745144518300,0.00892009,139.24,139.2,14.04]
[1745144520610,0.00892009,139.24,139.21,20.0]
[1745144524405,0.00892009,139.24,139.22,246.06]
[1745144538792,0.00892009,139.24,139.23,14.04]
[1745144545517,0.00892009,139.24,139.23,34.04]
[1745144560110,0.00892009,139.24,139.23,14.04]
[1745144570532,0.00892009,139.24,139.22,246.06]
[1745144570735,0.00892009,139.24,139.23,14.02]
[1745144588925,0.00892009,139.24,139.23,260.04]
[1745144590550,0.00892009,139.24,139.23,280.04]
[1745144592938,0.00892009,139.24,139.23,307.75978529]
[1745144594341,1.9282961,139.3,139.28,20.0]
[1745144594539,1.9282961,139.3,139.29,14.02]
[1745144595064,46.57794496,139.3,139.29,14.02]
[1745144595359,48.13254496,139.3,139.29,14.02]
[1745144599059,59.41289756,139.3,139.29,14.02]
[1745144600558,80.95289756,139.3,139.29,14.02]
[1745144600757,59.41289756,139.3,139.29,14.02]
[1745144601459,57.85829756,139.3,139.29,14.02]
[1745144602849,46.57794496,139.3,139.29,14.02]
[1745144611164,89.64794496,139.3,139.29,14.02]
[1745144611476,96.82669585,139.3,139.29,14.02]
[1745144612644,89.64794496,139.3,139.29,14.02]
[1745144614177,46.57794496,139.3,139.29,14.02]
[1745144620875,118.36669585,139.3,139.29,14.02]
[1745144621985,61.71964886,139.29,139.24,246.0]
[1745144622165,26.0,139.25,139.24,246.0]
[1745144622481,26.0,139.25,139.24,260.02]
[1745144626590,18.64964886,139.26,139.24,260.02]
[1745144630778,43.07,139.29,139.25,1.552]